bitfinex/quotes_ETHUSD_20251011
["timestamp","ask_amount","ask_price","bid_price","bid_amount"]
[1760149955386,0.13749391,3839.3,3836.7,0.02606406]
[1760149955906,0.02613481,3839.2,3836.6,0.2625]
[1760149956202,0.02613481,3839.2,3836.7,0.2625]
[1760149956771,0.6336,3839.0,3836.5,0.2625]
[1760149956971,0.6336,3839.0,3832.8,1.27253113]
[1760149956972,0.02613481,3838.9,3832.8,1.27253113]
[1760149957223,0.6336,3838.7,3832.8,1.27253113]
[1760149957374,0.6336,3838.4,3831.3,2.61007806]
[1760149957568,0.02613481,3838.3,3830.1,1.82181815]
[1760149957804,0.6336,3838.1,3833.2,0.02608786]
[1760149958015,0.02613481,3838.0,3833.2,0.02608786]
[1760149958181,0.6336,3838.1,3832.1,0.2625]
[1760149958509,0.46983481,3838.0,3832.1,0.2625]
[1760149958805,0.6336,3837.7,3830.1,0.2625]
[1760149959105,0.6336,3837.2,3830.3,0.2625]
[1760149959273,0.6336,3837.0,3830.3,0.2625]
[1760149959473,0.6336,3836.8,3830.3,0.2625]
[1760149959778,0.02613481,3836.7,3830.4,0.02610693]
[1760149959975,0.6336,3836.5,3830.3,0.2625]
[1760149960173,0.6336,3836.5,3830.4,0.2625]
[1760149960174,0.6336,3836.3,3830.4,0.2625]
[1760149960510,0.6336,3836.3,3830.5,0.00985641]
[1760149960674,0.6336,3836.9,3830.8,2.61039732]
[1760149961004,1.22589999,3837.9,3833.2,0.00984946]
[1760149961005,0.02613481,3836.8,3833.2,0.00984946]
[1760149961196,0.02613481,3837.6,3833.2,0.00984946]
[1760149961376,0.02613481,3837.6,3832.1,0.8961]
[1760149961573,0.02613481,3837.6,3832.6,0.6336]
[1760149961777,0.02613481,3838.4,3832.6,3.24278785]
[1760149962004,0.02613481,3838.4,3832.6,0.6336]
[1760149962177,0.4437,3838.5,3832.3,0.6336]
[1760149962374,0.02613481,3838.4,3833.2,0.65968786]
[1760149962588,0.4437,3838.3,3833.2,0.6336]
[1760149962809,0.65973481,3838.2,3833.2,0.6336]
[1760149963108,0.02613481,3838.2,3833.2,0.6336]
[1760149963404,0.46983481,3838.9,3833.2,0.6336]
[1760149963707,1.0773,3838.8,3833.2,0.6336]
[1760149964003,0.6336,3838.6,3833.2,0.6336]
[1760149964204,0.02613481,3838.5,3833.2,0.6336]
[1760149964507,0.6336,3838.4,3833.2,0.6336]
[1760149964816,0.6336,3838.2,3830.6,0.2625]
[1760149964990,0.6336,3837.7,3830.6,0.2625]
[1760149965219,0.02613481,3837.6,3830.6,0.2625]
[1760149965402,0.46983481,3837.5,3830.6,0.2625]
[1760149965580,0.46983481,3837.5,3830.7,0.02610488]
[1760149965780,0.4437,3837.5,3830.7,0.28860488]
[1760149965980,0.02613481,3837.4,3832.3,0.002]
[1760149966179,0.4437,3837.3,3832.3,0.002]
[1760149966692,0.4437,3837.3,3832.9,0.6336]
[1760149966896,0.02613481,3837.2,3832.3,0.002]
[1760149967274,0.4437,3837.3,3832.3,0.002]
[1760149967687,0.65973481,3837.2,3832.3,0.002]
[1760149968111,0.6336,3837.2,3832.3,0.002]
[1760149968277,0.6336,3837.0,3832.3,0.002]
[1760149968478,2.5536,3837.0,3832.3,0.002]
[1760149968709,0.6336,3837.0,3832.3,0.002]
[1760149969079,0.4437,3838.0,3832.3,0.002]
[1760149969281,0.4437,3838.0,3833.0,0.2625]
[1760149969476,0.02613481,3837.9,3833.6,0.2625]
[1760149969775,1.1374939,3839.3,3834.0,0.2625]
[1760149969979,1.63359999,3838.8,3834.0,0.2625]
[1760149970214,0.6336,3838.6,3834.0,0.2625]
[1760149970399,0.48573481,3838.5,3834.0,0.2625]
[1760149970602,0.99999999,3837.8,3834.0,0.2625]
[1760149970916,1.11933481,3837.7,3834.1,0.2625]
[1760149971128,1.0932,3837.7,3834.1,0.2625]
[1760149971329,0.02613481,3837.6,3832.3,0.002]
[1760149971608,0.6336,3837.4,3832.3,0.002]
[1760149971807,0.4596,3837.3,3832.3,0.002]
[1760149971980,0.02613481,3837.2,3832.3,0.002]
[1760149972176,0.02613481,3837.2,3832.6,0.2625]
[1760149972378,0.02613481,3837.2,3833.6,0.2625]
[1760149972739,0.02613481,3837.8,3834.2,0.2625]
[1760149973387,0.48573481,3837.8,3834.2,0.2625]
[1760149973590,0.4596,3838.5,3834.6,0.2625]
[1760149973925,0.4596,3838.5,3833.1,0.133116]
[1760149973926,0.4596,3839.1,3835.4,0.2625]
[1760149974127,0.13749391,3839.3,3835.6,0.2625]
[1760149974415,0.13749391,3839.3,3836.2,0.2625]
[1760149974416,0.02613481,3839.2,3836.2,0.2625]
[1760149974984,0.48573481,3839.2,3836.2,0.2625]
[1760149975388,1.36155536,3839.1,3836.3,0.2625]
[1760149975606,0.48573481,3839.0,3836.3,0.2625]
[1760149975990,0.48573481,3839.0,3833.2,0.2625]
[1760149976307,0.48573481,3839.0,3833.8,0.2625]
[1760149976523,0.48573481,3839.0,3834.4,0.2625]
[1760149977245,0.02613481,3838.9,3834.4,0.2625]
[1760149977448,0.4596,3838.8,3834.4,0.2625]
[1760149977631,0.4596,3838.8,3833.1,0.133116]
[1760149977632,0.02613481,3838.7,3834.5,0.2625]
[1760149977942,0.4596,3838.6,3834.5,0.2625]
[1760149978248,0.02613481,3838.5,3834.5,0.2625]
[1760149978428,0.4596,3838.4,3834.5,0.2625]
[1760149978733,0.4596,3838.4,3834.6,0.2625]
[1760149979309,0.02613481,3838.3,3834.6,0.2625]
[1760149979510,0.4596,3838.2,3834.6,0.2625]
[1760149979711,0.1296,3834.6,3833.4,0.2625]
[1760149979923,0.4596,3837.3,3833.4,0.2625]
[1760149980123,0.02613481,3837.2,3833.4,0.2625]
[1760149980311,0.4596,3837.1,3833.4,0.2625]
[1760149980528,0.02613481,3837.0,3833.4,0.2625]
[1760149980707,0.4596,3837.1,3833.5,0.2625]
[1760149981340,0.02613481,3837.0,3833.5,0.2625]
[1760149981544,0.4596,3836.9,3833.5,0.2625]
[1760149981752,0.02613481,3836.8,3833.2,0.2625]
[1760149982547,0.4562,3836.7,3833.3,0.02608718]
[1760149982757,0.4562,3837.5,3833.4,0.2625]
[1760149983051,0.13749391,3839.3,3834.7,0.6336]
[1760149983208,0.4562,3838.7,3835.0,0.2625]
[1760149983411,0.02613481,3838.6,3835.0,0.2625]
[1760149983611,0.02613481,3838.6,3834.3,0.2625]
[1760149984211,0.001,3837.8,3834.5,0.2625]
[1760149984443,0.6336,3837.6,3834.5,0.2625]
[1760149984618,0.02613481,3837.5,3834.5,0.2625]
[1760149984806,0.4562,3837.7,3834.6,0.02607833]
[1760149985135,0.65973481,3837.6,3833.4,0.002]
[1760149985310,0.6336,3837.6,3833.4,0.2645]
[1760149985506,0.48233481,3837.5,3833.4,0.2645]
[1760149985709,0.6336,3837.4,3833.4,0.2645]
[1760149985907,0.6336,3837.2,3833.4,0.2645]
[1760149986111,0.6336,3837.0,3833.4,0.2645]
[1760149986338,0.6336,3836.8,3833.4,0.002]
[1760149986547,0.02613481,3836.7,3833.4,0.002]
[1760149986742,0.6336,3836.5,3833.4,0.002]
[1760149986950,0.6336,3836.3,3833.4,0.002]
[1760149987257,0.4562,3836.8,3833.4,0.002]
[1760149987453,0.02613481,3836.2,3833.4,0.002]
[1760149987635,0.65973481,3836.2,3833.4,0.002]
[1760149987883,0.4562,3836.1,3833.4,0.002]
[1760149988176,0.65973481,3836.0,3833.4,0.002]
[1760149988380,1.39744499,3835.9,3833.4,0.002]
[1760149988595,1.97176227,3835.6,3833.4,0.002]
[1760149988806,0.02613481,3835.5,3833.4,0.002]
[1760149988951,0.4562,3835.5,3833.4,0.002]
[1760149989147,0.6336,3835.8,3833.4,0.002]
[1760149989565,0.6336,3835.4,3833.4,0.002]
[1760149989762,0.02613481,3835.3,3833.4,0.002]
[1760149989960,1.62724499,3835.9,3833.4,0.002]
[1760149989961,0.4562,3836.3,3833.5,0.0355]
[1760149990162,0.2298,3836.7,3833.5,0.0355]
[1760149990363,0.48233481,3836.6,3833.5,0.0355]
[1760149991716,0.4562,3836.6,3833.5,0.0355]
[1760149992119,0.02613481,3836.5,3833.5,0.0355]
[1760149992995,0.4562,3836.4,3833.5,0.0355]
[1760149993181,0.02613481,3836.3,3833.5,0.0355]
[1760149993382,0.4562,3836.2,3833.5,0.0355]
[1760149993581,0.02613481,3836.1,3833.5,0.0355]
[1760149994007,0.4562,3836.0,3833.5,0.0355]
[1760149994186,0.02613481,3835.9,3833.5,0.0355]
[1760149994384,0.4562,3835.8,3833.4,0.002]
[1760149994603,0.02613481,3835.7,3833.4,0.002]
[1760149994804,0.4562,3835.6,3833.4,0.002]
[1760149995005,0.02613481,3835.5,3833.4,0.002]
[1760149995204,0.4562,3835.4,3833.4,0.002]
[1760149995407,0.02613481,3835.3,3833.4,0.002]
[1760149995719,0.4562,3835.8,3833.5,0.0355]
[1760149995932,0.2298,3836.7,3833.5,0.0355]
[1760149996086,0.48233481,3836.6,3833.5,0.0355]
[1760149997713,0.4562,3836.6,3833.5,0.0355]
[1760149998020,0.02613481,3836.5,3833.5,0.0355]
[1760149998226,0.4562,3836.4,3833.5,0.0355]
[1760149998629,0.02613481,3836.3,3833.4,0.002]
[1760149998834,0.4562,3836.2,3833.4,0.002]
[1760149999129,0.02613481,3836.1,3833.4,0.002]
[1760149999289,0.4562,3836.0,3833.4,0.002]
[1760149999628,1.37017763,3835.8,3833.4,0.002]
[1760149999787,0.2298,3833.5,3832.3,0.002]
[1760149999991,0.02613481,3833.4,3832.3,0.002]
[1760150000194,0.4562,3834.5,3832.3,0.002]
[1760150000418,0.686,3835.1,3832.4,0.0355]
[1760150000595,0.4562,3835.4,3832.4,0.0355]
[1760150001007,0.02613481,3835.3,3832.4,0.0355]
[1760150001411,0.2298,3835.6,3832.4,0.0355]
[1760150001717,0.02613481,3835.3,3832.4,0.0355]
[1760150001920,0.2298,3835.6,3832.4,0.0355]
[1760150002119,0.4562,3836.5,3833.0,0.2625]
[1760150002423,0.4562,3836.5,3832.5,0.6336]
[1760150002424,0.02613481,3836.4,3833.6,0.2625]
[1760150002597,0.2298,3838.2,3834.5,0.6336]
[1760150002789,0.02713481,3837.8,3834.6,0.298]
[1760150002985,0.02713481,3837.8,3834.7,0.0355]
[1760150003210,0.001,3837.8,3835.1,0.2625]
[1760150003519,0.001,3837.8,3835.9,0.2625]
[1760150003710,0.001,3837.8,3836.0,0.0355]
[1760150004293,0.001,3837.6,3836.0,0.0355]
[1760150005023,0.02713481,3837.6,3836.0,0.0355]
[1760150006963,0.001,3837.6,3836.0,0.0355]
[1760150007446,0.2298,3842.0,3836.1,0.6336]
[1760150007447,0.02613481,3839.2,3836.1,0.6336]
[1760150007661,0.02613481,3839.2,3836.2,0.0335]
[1760150007973,0.686,3840.4,3836.3,0.6336]
[1760150008271,0.2298,3842.0,3836.5,0.6336]
[1760150008272,0.2298,3840.9,3836.5,0.6336]
[1760150008484,0.02613481,3840.8,3836.7,0.6336]
[1760150008941,0.02613481,3840.8,3836.9,0.6336]
[1760150009137,0.4562,3840.7,3837.0,0.05956202]
[1760150009336,1.0898,3840.7,3837.1,0.0335]
[1760150009537,0.02613481,3839.2,3837.1,0.0335]
[1760150010566,0.65973481,3839.2,3837.1,0.0335]
[1760150011511,0.6336,3839.0,3836.5,0.0335]
[1760150011655,0.02613481,3838.9,3836.5,0.0335]
[1760150011855,0.02613481,3838.9,3836.6,0.0335]
[1760150012499,0.6336,3838.7,3833.4,0.002]
[1760150012703,0.6336,3838.5,3836.0,0.0335]
[1760150012883,0.6336,3838.5,3833.4,0.002]
[1760150012884,0.02613481,3838.4,3835.3,0.0335]
[1760150013085,0.6336,3838.2,3835.3,0.0335]
[1760150013271,0.6336,3838.0,3835.3,0.0335]
[1760150013706,0.6336,3837.8,3833.4,0.002]
[1760150013887,0.6336,3837.6,3833.9,0.0335]
[1760150014094,0.02613481,3837.5,3833.4,0.002]
[1760150014395,0.6336,3837.3,3833.4,0.002]
[1760150014554,0.6336,3837.1,3833.4,0.002]
[1760150014756,0.6336,3837.1,3833.5,0.0335]
[1760150014961,0.6336,3836.9,3833.5,0.0335]
[1760150015159,0.6336,3836.9,3833.6,0.02608513]
[1760150015370,0.6336,3836.9,3833.7,0.0335]
[1760150015693,0.02613481,3836.8,3833.7,0.0335]
[1760150015856,0.6336,3836.9,3833.7,0.0335]
[1760150016285,0.02613481,3836.8,3833.7,0.0335]
[1760150016489,0.6336,3836.9,3833.7,0.0335]
[1760150016653,0.02613481,3836.8,3833.8,0.02202552]
[1760150016853,0.02613481,3836.8,3833.9,0.0335]
[1760150017086,0.13649391,3839.3,3834.0,0.65968242]
[1760150017289,0.13649391,3839.3,3834.2,0.6336]
[1760150017488,0.13649391,3839.3,3834.3,0.02608037]
[1760150017675,0.13649391,3839.3,3834.5,0.6336]
[1760150017990,0.13649391,3839.3,3834.7,0.6336]
[1760150018307,0.13649391,3839.3,3834.9,0.6336]
[1760150018605,0.02613481,3839.2,3835.3,0.6336]
[1760150018784,0.02613481,3839.2,3835.4,0.0335]
[1760150018967,0.46113481,3839.2,3835.4,0.0335]
[1760150019180,0.6336,3839.1,3835.4,0.0335]
[1760150019368,0.02613481,3839.0,3835.4,0.0335]
[1760150019575,0.435,3839.2,3835.5,0.6336]
[1760150019796,0.13649391,3839.3,3835.7,0.6336]
[1760150020002,0.02613481,3839.2,3835.7,0.6336]
[1760150020163,0.02613481,3839.2,3835.9,0.6336]
[1760150020364,0.02613481,3839.2,3836.0,0.0335]
[1760150020673,0.13649391,3839.3,3836.1,0.6336]
[1760150020860,0.13649391,3839.3,3836.3,0.6336]
[1760150021060,0.13649391,3839.3,3836.4,0.0335]
[1760150021260,0.13649391,3839.3,3837.0,0.2615]
[1760150021506,0.13649391,3839.3,3837.3,0.8951]
[1760150021858,0.13649391,3839.3,3837.5,0.6336]
[1760150022065,0.13649391,3839.3,3837.6,0.0335]
[1760150022563,0.02613481,3839.2,3837.6,0.0335]
[1760150022768,0.13749391,3839.3,3837.6,0.0335]
[1760150022988,0.02613481,3839.2,3837.6,0.0335]
[1760150023857,0.13749391,3839.3,3837.6,0.0335]
[1760150024069,0.02613481,3839.2,3837.6,0.0335]
[1760150024474,0.02613481,3839.2,3837.1,0.0335]
[1760150025430,0.57249391,3839.3,3837.1,0.0335]
[1760150025776,0.13749391,3839.3,3837.1,0.0335]
[1760150025975,0.02613481,3839.2,3837.1,0.0335]
[1760150026505,0.13749391,3839.3,3837.2,0.65961688]
[1760150026808,0.02613481,3839.2,3837.3,0.0335]
[1760150027176,0.13749391,3839.3,3837.3,0.0335]
[1760150028209,0.13749391,3839.3,3837.4,0.6336]
[1760150028412,0.10399391,3839.3,3837.6,0.6336]
[1760150028576,0.001,3839.3,3837.6,0.6336]
[1760150028772,0.001,3839.3,3836.3,0.6336]
[1760150029609,0.001,3839.3,3836.5,0.6336]
[1760150030114,0.001,3839.3,3836.3,0.6336]
[1760150030487,0.001,3839.3,3836.5,0.6336]
[1760150031016,0.001,3839.3,3836.3,0.6336]
[1760150031198,0.001,3839.3,3836.2,0.6336]
[1760150031510,0.001,3839.3,3836.2,0.8951]
[1760150032409,0.001,3839.3,3836.4,0.6336]
[1760150032787,0.001,3839.3,3835.3,0.2615]
[1760150033007,0.001,3839.3,3836.0,0.6336]
[1760150033218,0.001,3839.3,3834.3,2.60802942]
[1760150033219,0.001,3839.3,3836.2,0.8951]
[1760150033405,0.001,3839.3,3836.4,0.6336]
[1760150033734,0.001,3839.3,3838.1,0.2615]
[1760150033930,0.001,3839.3,3835.9,2.60694214]
[1760150033931,0.001,3839.3,3838.7,0.2615]
[1760150034242,0.001,3839.3,3839.0,0.8951]
[1760150035031,0.001,3839.3,3839.0,0.2615]
[1760150035230,0.001,3839.3,3834.8,2.60766318]
[1760150035231,0.001,3839.3,3839.1,0.2615]
[1760150036310,0.1296,3839.1,3838.8,0.2615]
[1760150036515,0.001,3839.3,3838.8,0.2615]
[1760150037215,0.001,3839.3,3838.2,0.2615]
[1760150037448,0.001,3839.3,3838.3,0.02605319]
[1760150039229,0.001,3839.3,3839.2,0.8951]
[1760150039435,0.001,3839.3,3839.2,0.28754709]
[1760150039634,0.001,3839.3,3839.2,0.2615]
[1760150040805,0.001,3839.3,3838.4,0.2615]
[1760150041242,0.001,3839.3,3834.5,0.2615]
[1760150041408,0.001,3839.3,3835.5,0.002]
[1760150041609,0.001,3839.3,3835.6,0.02607154]
[1760150041849,0.02713481,3839.3,3835.8,0.2615]
[1760150042007,0.02713481,3839.3,3835.9,0.0260695]
[1760150042210,0.02713481,3839.3,3835.8,0.2615]
[1760150042211,0.001,3839.3,3835.8,0.2615]
[1760150042549,0.02713481,3839.3,3835.8,0.28757018]
[1760150042750,0.02613481,3839.2,3835.9,0.2615]
[1760150043351,0.02613481,3839.2,3836.1,0.2615]
[1760150043643,0.001,3839.3,3836.1,0.2615]
[1760150043850,0.02713481,3839.3,3836.1,0.2615]
[1760150044211,0.001,3839.3,3835.5,0.002]
[1760150044522,0.001,3839.3,3836.6,0.8951]
[1760150045232,0.02713481,3839.3,3836.6,0.8951]
[1760150045432,0.02713481,3839.3,3836.6,0.2615]
[1760150045619,0.001,3839.3,3836.7,0.2615]
[1760150045941,0.02713481,3839.3,3836.9,0.2615]
[1760150046127,0.02713481,3839.3,3835.5,0.002]
[1760150046808,0.001,3839.3,3835.6,0.02229243]
[1760150047008,0.001,3839.3,3835.8,0.8951]
[1760150047243,0.001,3839.3,3836.0,0.8951]
[1760150047447,0.001,3839.3,3835.5,2.60921511]
[1760150047448,0.001,3839.3,3836.8,0.2615]
[1760150047652,0.001,3839.3,3837.3,0.6336]
[1760150047986,0.001,3839.3,3838.0,0.2615]
[1760150048872,0.001,3839.3,3837.4,0.6336]
[1760150048873,0.001,3839.3,3837.5,0.2615]
[1760150049081,0.001,3839.3,3837.7,0.2615]
[1760150049382,0.001,3839.3,3837.8,0.02605659]
[1760150049672,0.001,3839.3,3837.7,0.2615]
[1760150050050,0.001,3839.3,3837.8,0.2615]
[1760150050434,0.001,3839.3,3837.2,0.2615]
[1760150050435,0.1296,3837.8,3837.2,0.2615]
[1760150050659,0.02713481,3839.3,3837.2,0.2615]
[1760150051060,0.02713481,3839.3,3835.5,0.002]
[1760150051277,0.001,3839.3,3835.6,0.23465082]
[1760150051580,0.02713481,3839.3,3836.6,0.2615]
[1760150051740,0.001,3839.3,3836.7,0.02606406]
[1760150052050,0.001,3839.3,3836.6,0.2615]
[1760150052675,0.4528,3839.2,3835.5,0.002]
[1760150052966,1.36155536,3839.1,3835.5,0.002]
[1760150053338,1.36155536,3839.1,3835.6,0.01401313]
[1760150053538,0.47893481,3839.0,3835.5,0.002]
[1760150053771,0.4528,3839.0,3835.5,0.002]
[1760150054657,0.4528,3839.0,3836.0,0.2615]
[1760150054873,0.02613481,3838.9,3836.0,0.2615]
[1760150055178,0.02613481,3838.9,3836.1,0.6336]
[1760150055374,0.02613481,3838.9,3836.0,0.2615]
[1760150056339,0.001,3839.3,3836.0,0.2615]
[1760150057170,0.001,3839.3,3836.4,0.2615]
[1760150057776,0.02713481,3839.3,3836.4,0.2615]
[1760150057948,0.001,3839.3,3836.4,0.2615]
[1760150058145,0.001,3839.3,3836.7,0.6336]
[1760150058342,0.001,3839.3,3836.9,0.8951]
[1760150058543,0.001,3839.3,3837.1,0.6336]
[1760150058875,0.001,3839.3,3837.3,0.6336]
[1760150059064,0.001,3839.3,3836.9,0.2615]
[1760150059388,0.02713481,3839.3,3836.9,0.2615]
[1760150060183,0.001,3839.3,3837.0,0.6437048]
[1760150060356,0.23828197,3839.4,3839.3,0.999]
[1760150063792,0.23828197,3839.4,3839.3,1.6326]
[1760150065662,0.23828197,3839.4,3839.3,0.999]
[1760150069075,0.23828197,3839.4,3839.3,1.6326]
[1760150069702,0.23828197,3839.4,3839.3,0.999]
[1760150073203,0.23828197,3839.4,3839.3,1.6326]
[1760150073371,0.23828197,3839.4,3839.3,1.8941]
[1760150073572,0.02613481,3842.6,3839.3,1.8941]
[1760150074770,0.47893481,3842.6,3839.3,1.2605]
[1760150075708,0.4528,3842.5,3839.3,1.2605]
[1760150076006,0.02613481,3842.4,3839.3,1.2605]
[1760150076218,0.4528,3842.3,3839.3,1.2605]
[1760150076394,0.4528,3842.2,3839.3,1.2605]
[1760150076792,0.13661729,3842.7,3839.3,1.2605]
[1760150077099,0.47893481,3842.6,3839.3,1.2605]
[1760150077313,0.4528,3842.5,3839.3,1.2605]
[1760150077804,0.13661729,3842.7,3839.3,1.2605]
[1760150078007,0.13661729,3842.7,3839.5,0.2615]
[1760150078312,0.13661729,3842.7,3839.6,0.6336]
[1760150078476,0.02613481,3842.6,3839.7,0.2615]
[1760150079380,0.13661729,3842.7,3839.8,0.8951]
[1760150079786,0.02613481,3842.6,3839.8,0.8951]
[1760150080980,0.02613481,3842.6,3839.9,0.2615]
[1760150081911,0.02613481,3842.6,3839.4,0.2615]
[1760150082118,0.4528,3842.5,3839.4,0.2615]
[1760150082315,0.02613481,3842.4,3839.4,0.2615]
[1760150082716,0.4528,3842.3,3839.4,0.2615]
[1760150083035,0.02613481,3842.2,3839.4,0.2615]
[1760150083819,1.3852339,3842.0,3839.4,0.2615]
[1760150084023,1.35394855,3841.8,3839.4,0.2615]
[1760150084331,0.47893481,3841.7,3839.4,0.2615]
[1760150085193,1.31697804,3841.6,3839.3,1.001]
[1760150085392,1.31893956,3841.4,3839.3,1.001]
[1760150085607,1.78947681,3841.3,3839.3,1.001]
[1760150085810,1.34790903,3841.1,3839.3,1.001]
[1760150086011,1.33352097,3840.9,3839.3,1.001]
[1760150086201,0.47893481,3840.8,3839.3,1.2625]
[1760150086424,0.4528,3840.7,3839.3,1.2625]
[1760150086606,1.37681409,3840.5,3837.0,0.002]
[1760150086798,0.2358,3839.4,3837.0,0.002]
[1760150087002,1.38600008,3840.3,3837.0,0.002]
[1760150087247,1.34809062,3840.1,3837.0,0.002]
[1760150087710,1.36971528,3840.6,3837.0,0.002]
[1760150087915,0.02613481,3840.0,3837.3,0.2615]
[1760150088336,0.6886,3839.9,3837.3,0.2615]
[1760150088548,0.6886,3839.9,3837.0,0.002]
[1760150088834,1.34809062,3840.1,3837.0,0.002]
[1760150089146,1.32504309,3840.2,3837.0,0.002]
[1760150089633,1.37422543,3840.1,3837.0,0.002]
[1760150090010,0.02613481,3840.1,3837.0,0.002]
[1760150090609,1.36971528,3840.6,3837.0,0.002]
[1760150090805,1.35394855,3841.8,3837.0,0.6356]
[1760150091034,0.441,3841.7,3837.0,0.002]
[1760150091343,0.6336,3841.6,3837.0,0.002]
[1760150091537,0.65973481,3841.6,3837.0,0.002]
[1760150091835,0.6336,3841.4,3837.0,0.002]
[1760150092002,1.38064614,3841.0,3837.0,0.002]
[1760150092204,1.35965578,3840.9,3837.1,0.6336]
[1760150092401,1.0746,3840.8,3837.0,0.002]
[1760150092701,0.6336,3840.5,3837.0,0.002]
[1760150092905,0.6336,3840.3,3837.0,0.002]
[1760150093118,0.6336,3840.0,3837.0,0.002]
[1760150093318,0.02613481,3839.9,3837.0,0.002]
[1760150093645,0.6336,3839.7,3837.0,0.002]
[1760150093860,0.46713481,3839.6,3837.0,0.002]
[1760150094523,0.441,3839.6,3837.0,0.002]
[1760150095125,0.02613481,3839.5,3837.0,0.002]
[1760150095458,0.441,3840.3,3837.0,0.002]
[1760150095655,0.2259,3839.9,3837.0,0.002]
[1760150095858,0.02613481,3839.8,3837.0,0.002]
[1760150096064,0.441,3839.7,3837.0,0.002]
[1760150096261,0.02613481,3839.6,3837.0,0.002]
[1760150096465,0.441,3839.7,3837.0,0.002]
[1760150096662,0.02613481,3839.6,3837.0,0.002]
[1760150097144,0.41713481,3839.7,3837.1,0.0239]
[1760150097339,0.6336,3839.8,3837.1,0.0239]
[1760150097919,0.6336,3839.8,3837.0,0.002]
[1760150098149,0.6336,3839.6,3837.0,0.002]
[1760150099161,0.6336,3839.4,3837.0,0.002]
[1760150099835,0.6336,3839.2,3837.0,0.002]
[1760150100235,0.441,3839.3,3837.1,0.0239]
[1760150100432,0.441,3839.2,3837.0,0.002]
[1760150100646,0.441,3839.2,3837.1,0.0239]
[1760150101252,0.441,3839.7,3837.1,0.0239]
[1760150101452,0.6336,3839.6,3837.1,0.0239]
[1760150101642,0.441,3839.5,3837.1,0.0239]
[1760150102551,0.441,3839.5,3837.0,0.002]
[1760150103946,0.441,3839.5,3837.1,0.0239]
[1760150105057,0.6336,3839.8,3837.0,0.002]
[1760150105058,0.6336,3839.6,3837.0,0.002]
[1760150105371,0.6336,3839.3,3837.1,0.0239]
[1760150105740,0.6336,3839.1,3837.0,0.002]
[1760150105940,0.10473658,3839.7,3837.0,0.002]
[1760150105941,0.6336,3838.9,3837.0,0.002]
[1760150106172,0.6336,3838.7,3837.0,0.002]
[1760150106378,0.6336,3838.5,3837.0,0.002]
[1760150106553,2.02389905,3838.5,3837.0,0.002]
[1760150106750,0.4509,3838.4,3837.0,0.002]
[1760150106950,0.10473658,3839.7,3837.1,0.0239]
[1760150107164,0.4509,3839.4,3837.1,0.0239]
[1760150107361,0.6336,3839.3,3837.1,0.0239]
[1760150107574,0.6336,3839.1,3837.1,0.0239]
[1760150107943,0.1296,3837.1,3837.0,0.002]
[1760150108356,0.1296,3837.1,3837.0,0.0259]
[1760150110044,0.4509,3839.6,3837.0,0.0259]
[1760150111175,1.96432064,3839.5,3837.0,0.0259]
[1760150111340,0.4509,3839.6,3837.0,0.0259]
[1760150111847,0.4519,3840.2,3837.0,0.0259]
[1760150113071,0.6336,3840.1,3837.0,0.0259]
[1760150113273,0.6336,3839.9,3837.0,0.0259]
[1760150113647,0.6336,3839.7,3837.0,0.0259]
[1760150113978,0.4509,3839.6,3837.0,0.0259]
[1760150114198,0.2287,3839.8,3837.0,0.0259]
[1760150114364,0.001,3840.2,3837.0,0.0259]
[1760150115046,0.001,3840.2,3837.0,0.2874]
[1760150115249,0.001,3840.2,3837.8,0.2615]
[1760150115489,0.001,3840.2,3838.6,0.2615]
[1760150115787,0.4509,3842.5,3839.0,0.2615]
[1760150115989,0.4509,3842.5,3839.1,0.0229]
[1760150116352,1.37233695,3842.4,3839.1,0.0229]
[1760150116589,0.4509,3842.3,3839.1,0.0229]
[1760150116779,0.4509,3842.3,3839.1,0.2844]
[1760150117296,1.37786423,3842.2,3839.1,0.2844]
[1760150117491,1.3852339,3842.0,3838.5,0.0229]
[1760150117648,0.6796,3841.9,3838.5,0.0229]
[1760150117847,1.35394855,3841.8,3838.5,0.0229]
[1760150118047,0.4509,3841.7,3838.5,0.0229]
[1760150118286,1.31697804,3841.6,3838.5,0.0229]
[1760150118592,1.31893956,3841.4,3838.5,0.0229]
[1760150118751,0.4509,3841.5,3838.5,0.0229]
[1760150119093,0.001,3842.5,3838.6,0.6336]
[1760150119263,0.4519,3842.5,3838.7,0.2844]
[1760150119451,0.4519,3842.5,3838.8,0.0229]
[1760150120292,0.6336,3842.4,3838.8,0.0229]
[1760150121049,0.001,3842.5,3838.8,0.0229]
[1760150121584,0.001,3842.5,3838.9,0.0258338]
[1760150122153,0.001,3842.5,3839.0,0.0229]
[1760150122482,0.001,3842.5,3839.1,0.02583245]
[1760150122993,0.4509,3842.4,3839.2,0.0229]
[1760150123807,0.6336,3842.3,3839.2,0.0229]
[1760150123990,0.6336,3842.1,3839.2,0.0229]
[1760150124690,1.99368988,3841.9,3839.2,0.0229]
[1760150124889,0.6336,3841.7,3839.2,0.0229]
[1760150125078,0.4509,3841.6,3839.2,0.0229]
[1760150126026,1.35406414,3842.3,3839.2,0.0229]
[1760150126181,1.31922015,3842.1,3839.2,0.2844]
[1760150126377,0.6336,3841.8,3839.3,0.0229]
[1760150126694,0.6336,3841.6,3839.3,0.0229]
[1760150126882,0.6336,3842.1,3839.3,0.0229]
[1760150127075,0.77021729,3842.7,3839.3,0.0229]
[1760150127283,0.13661729,3842.7,3839.3,0.0229]